fUSD/lending_fUSD_20240727
["ID","MTS","AMOUNT","RATE_DAILY","PERIOD"]
[333401027,1722107436258,-625.0,0.00010999,2]
[333401028,1722107436267,-625.0,0.00010999,2]
[333401029,1722107436276,-625.0,0.00010999,2]
[333401030,1722107436286,-625.0,0.00010999,2]
[333401031,1722107436296,-625.0,0.00010999,2]
[333401032,1722107436306,-625.0,0.00010999,2]
[333401033,1722107436317,-502.75326564,0.00010999,2]
[333401034,1722107436326,-517.05,0.00010999,2]
[333401035,1722107436335,-500.0,0.00010999,2]
[333401036,1722107436344,-434.05606525,0.00010999,2]
[333401037,1722107436353,-500.0,0.00010999,2]
[333401038,1722107436363,-500.0,0.00010999,2]
[333401039,1722107436372,-500.0,0.00010999,2]
[333401040,1722107436381,-383.54,0.00010999,2]
[333401041,1722107436390,-563.78,0.00010999,2]
[333401042,1722107436400,-502.22878933,0.00010999,2]
[333401043,1722107436409,-500.0,0.00010999,2]
[333401044,1722107436418,-500.0001,0.00010999,2]
[333401045,1722107436427,-500.0,0.00010999,2]
[333401046,1722107436436,-500.0,0.00010999,2]
[333401047,1722107436445,-346.11,0.00010999,2]
[333401048,1722107436455,-500.0,0.00010999,2]
[333401049,1722107436465,-242.28,0.00010999,2]
[333401050,1722107436474,-500.0,0.00010999,2]
[333401051,1722107436483,-500.0,0.00010999,2]
[333401052,1722107436493,-500.0,0.00010999,2]
[333401053,1722107436503,-500.0,0.00010999,2]
[333401054,1722107436512,-500.0,0.00010999,2]
[333401055,1722107436521,-500.0,0.00010999,2]
[333401056,1722107436530,-500.0,0.00010999,2]
[333401057,1722107436539,-500.0,0.00010999,2]
[333401058,1722107436549,-500.0,0.00010999,2]
[333401059,1722107436559,-500.0,0.00010999,2]
[333401060,1722107436570,-500.0,0.00010999,2]
[333401061,1722107436579,-500.0,0.00010999,2]
[333401062,1722107436589,-500.0,0.00010999,2]
[333401063,1722107436598,-376.17,0.00010999,2]
[333401064,1722107436608,-501.28660099,0.00010999,2]
[333401065,1722107436617,-501.31862989,0.00010999,2]
[333401066,1722107436627,-500.89056219,0.00010999,2]
[333401067,1722107436637,-500.38482985,0.00010999,2]
[333401068,1722107436646,-501.03029348,0.00010999,2]
[333401069,1722107436656,-500.62119233,0.00010999,2]
[333401070,1722107436665,-500.0,0.00010999,2]
[333401071,1722107436674,-500.0,0.00010999,2]
[333401072,1722107436686,-500.0,0.00010999,2]
[333401073,1722107436696,-500.0,0.00010999,2]
[333401074,1722107436705,-500.0,0.00010999,2]
[333401075,1722107436715,-500.0,0.00010999,2]
[333401076,1722107436725,-500.0,0.00010999,2]
[333401077,1722107436735,-500.0,0.00010999,2]
[333401078,1722107436744,-505.83451951,0.00010999,2]
[333401079,1722107436754,-500.0,0.00010999,2]
[333401080,1722107436765,-500.0,0.00010999,2]
[333401081,1722107436775,-500.0,0.00010999,2]
[333401082,1722107436785,-500.0,0.00010999,2]
[333401083,1722107436794,-500.0,0.00010999,2]
[333401084,1722107436803,-500.0,0.00010999,2]
[333401085,1722107436812,-500.0,0.00010999,2]
[333401086,1722107436829,-500.0,0.00010999,2]
[333401087,1722107436839,-500.0,0.00010999,2]
[333401088,1722107436849,-500.0,0.00010999,2]
[333401089,1722107436859,-150.0,0.00010999,2]
[333401090,1722107436868,-630.0,0.00011,2]
[333401091,1722107436878,-228.84088404,0.00011,2]
[333401092,1722107436888,-25962.40234323,0.00011,2]
[333401093,1722107436903,-2051.49,0.00011,2]
[333401094,1722107436914,-331149.92219424,0.00011,2]
[333401095,1722107436925,-935.99632994,0.00011,2]
[333401096,1722107436936,-4998.39904866,0.00011,2]
[333401097,1722107437046,-797.37400748,0.00011,2]
[333401098,1722107437059,-819.28,0.00011,2]
[333401099,1722107437071,-707.07731665,0.00011,2]
[333401100,1722107437082,-629.99914214,0.00011,2]
[333401101,1722107437093,-13517.25894804,0.00011,2]
[333401102,1722107437104,-589.589,0.00011,2]
[333401103,1722107437115,-1414.36815207,0.00011,2]
[333401104,1722107437125,-371.6925449,0.00011,2]
[333401109,1722107438374,-361.02951761,0.00011,2]
[333401110,1722107438386,-2705.1624,0.00011,2]
[333401111,1722107438397,-1275.15327242,0.00011,2]
[333401112,1722107438446,-7440.2661436,0.00011,2]
[333401113,1722107438458,-5381.75906011,0.00011,2]
[333401114,1722107438525,-2373.47302965,0.00011,2]
[333401115,1722107438536,-1868.14355823,0.00011,2]
[333401116,1722107438612,-2637.06102234,0.00011,2]
[333401117,1722107438627,-997.76448001,0.00011,2]
[333401118,1722107438642,-33500.0,0.00011,2]
[333401119,1722107438685,-3819.06465932,0.00011,2]
[333401154,1722107440468,-1341.67068909,0.00011,2]
[333401191,1722107441576,-137494.80474928,0.00011,2]
[333401192,1722107441588,-1075021.8720887,0.00011,2]
[333401193,1722107441602,-1000.0,0.00011,2]
[333401194,1722107441627,-27380.02098,0.00011,2]
[333401216,1722107443450,-574.0,0.00011,2]
[333401219,1722107443462,-550.28055306,0.00011,2]
[333401221,1722107443476,-65448.75971001,0.00011,2]
[333401223,1722107443488,-416.58390641,0.00011,2]
[333401226,1722107443501,-666.21112977,0.00011,2]
[333401228,1722107443513,-28682.05499493,0.00011,2]
[333401230,1722107443526,-9782.00000001,0.00011,2]
[333401233,1722107443541,-2307.75,0.00011,2]
[333401235,1722107443553,-2194.51544272,0.00011,2]
[333401241,1722107443603,-61493.950431,0.00011,2]
[333401243,1722107443616,-4882.64581288,0.00011,2]
[333401259,1722107443755,-3244.49839882,0.00011,2]
[333401261,1722107443770,-10345.80103179,0.00011,2]
[333401263,1722107443783,-380.20706292,0.00011,2]
[333401266,1722107443796,-6686.38432214,0.00011,2]
[333401493,1722107446924,-603.53120751,0.00011,2]
[333401496,1722107447041,-831.49999617,0.00011,2]
[333401499,1722107447056,-366.0,0.00011,2]
[333401502,1722107447070,-306365.18643374,0.00011,2]
[333401506,1722107447084,-32530.00000015,0.00011,2]
[333401510,1722107447098,-8994.221202,0.00011,2]
[333401514,1722107447111,-6646.64,0.00011,2]
[333401518,1722107447124,-1707.88238777,0.00011,2]
[333401521,1722107447137,-827.87841086,0.00011,2]
[333401525,1722107447166,-4579.60940323,0.00011,2]
[333401572,1722107992103,150.13,0.0002,90]
[333401573,1722108003003,150.13,0.0002,90]
[333401574,1722108004198,150.13,0.0002,90]
[333401575,1722108005309,150.13,0.0002,90]
[333401576,1722108020875,-163.69,8.219e-05,2]
[333401577,1722108020906,-1102.53,8.219e-05,2]
[333401578,1722108020931,-200.0,9.522e-05,2]
[333401579,1722108020953,-1512.12,9.944e-05,2]
[333401580,1722108020974,-488.0,9.944e-05,2]
[333401581,1722108020996,-167.81,0.00010118,2]
[333401582,1722108021022,-865.85,0.00010353,2]
[333401586,1722108043427,234.21187422,0.0002,90]
[333401589,1722108054851,-155.56074322,0.00010353,2]
[333401590,1722108054878,-44.43925678,0.00010353,2]
[333401593,1722108070767,-200.0,0.00010353,2]
[333401595,1722108080334,-150.0,0.00010353,2]
[333401603,1722108118241,150.87906816,0.0002,90]
[333401624,1722108561039,2831.38732595,6.781e-05,7]
[333401627,1722108633138,188.0,6.781e-05,4]
[333401628,1722108633270,-1047.4,8.219e-05,2]
[333401629,1722108633280,-2893.18784381,8.219e-05,2]
[333401630,1722108633289,-2000.0,9.943e-05,2]
[333401631,1722108633299,-1250.0,0.0001,2]
[333401633,1722108633310,-191.09326634,0.0001,2]
[333401634,1722108633320,-609.6,0.0001,2]
[333401636,1722108633329,-486.231445,0.00010301,2]
[333401637,1722108633339,-604.40517486,0.00010353,2]
[333401639,1722108633348,-1047.4,0.00010476,2]
[333401640,1722108633357,-1221.3423,0.0001069,2]
[333401641,1722108633367,-222.490914,0.00010743,2]
[333401642,1722108633376,-300.0,0.00010789,2]
[333401643,1722108633385,-481.14,0.0001079,2]
[333401644,1722108633395,-499.99,0.0001079,2]
[333401645,1722108633405,-2652.3949591,0.0001079,2]
[333401646,1722108633417,-412.606,0.0001079,2]
[333401647,1722108633439,-4395.11384839,0.0001079,2]
[333401648,1722108633449,-74.02524761,0.00010799,2]
[333401649,1722108633461,-75.97475239,0.00010799,2]
[333401650,1722108633470,-2756.7848,0.000108,2]
[333401651,1722108633480,-3589.77,0.000108,2]
[333401652,1722108633489,-2187.89403341,0.000108,2]
[333401653,1722108633502,-266.95294903,0.000108,2]
[333401654,1722108633514,-6599.90554356,0.000108,2]
[333401655,1722108633530,-5823.10397479,0.000108,2]
[333401656,1722108633541,-679.73,0.000108,2]
[333401657,1722108633553,-968.08911481,0.000108,2]
[333401658,1722108633572,-610.48334861,0.000108,2]
[333401659,1722108633582,-965.9951,0.000108,2]
[333401660,1722108633591,-704.09868898,0.000108,2]
[333401661,1722108633616,-34299.33911102,0.000108,2]
[333401662,1722108633625,-1299.5345,0.000108,2]
[333401663,1722108633635,-8496.2838,0.000108,2]
[333401664,1722108633644,-318.57,0.000108,2]
[333401665,1722108633654,-185.72430426,0.0001085,2]
[333401666,1722108633663,-185.72430426,0.00010868,2]
[333401667,1722108633672,-185.72430426,0.00010871,2]
[333401668,1722108633682,-12856.0,0.0001089,2]
[333401669,1722108633691,-4808.2539,0.0001089,2]
[333401670,1722108633700,-500.0,0.00010899,2]
[333401671,1722108633709,-290.4654,0.00010899,2]
[333401672,1722108633719,-592.94,0.00010899,2]
[333401673,1722108633728,-179.07191143,0.00010899,2]
[333401674,1722108633738,-179.07191143,0.00010899,2]
[333401675,1722108633748,-179.07191143,0.00010899,2]
[333401677,1722108633758,-10243.8914,0.000109,2]
[333401679,1722108633767,-1502.3093,0.000109,2]
[333401680,1722108633777,-7500.0,0.000109,2]
[333401681,1722108633786,-3991.18446678,0.000109,2]
[333401682,1722108633795,-835.79075249,0.000109,2]
[333401683,1722108633808,-4058.96771851,0.000109,2]
[333401684,1722108633818,-2675.9042,0.000109,2]
[333401685,1722108633827,-1000.0,0.000109,2]
[333401686,1722108633837,-1000.0,0.000109,2]
[333401687,1722108633846,-1000.0,0.000109,2]
[333401688,1722108633856,-1000.0,0.000109,6]
[333401689,1722108633865,-161.237997,0.000109,2]
[333401690,1722108633875,-303.457269,0.000109,2]
[333401691,1722108633884,-1112.98096882,0.000109,2]
[333401692,1722108633893,-179.07191143,0.000109,2]
[333401693,1722108633902,-159.40595947,0.000109,2]
[333401694,1722108633912,-431.509,0.00010904,2]
[333401695,1722108633921,-250.0,0.00010959,2]
[333401696,1722108633931,-28656.95569825,0.0001099,5]
[333401697,1722108633940,-518.16367457,0.00010997,2]
[333401698,1722108633950,-13210.4070478,0.00010997,2]
[333401699,1722108633959,-643.9929568,0.00010997,2]
[333401700,1722108633969,-4617.93432456,0.00010997,2]
[333401701,1722108633979,-500.0,0.00010998,2]
[333401702,1722108633988,-604.56,0.00010998,2]
[333401703,1722108633998,-500.0,0.00010998,2]
[333401704,1722108634007,-500.0,0.00010998,2]
[333401705,1722108634017,-500.0,0.00010998,2]
[333401706,1722108634026,-500.0,0.00010998,2]
[333401707,1722108634035,-223.12,0.00010999,2]
[333401708,1722108634045,-500.0,0.00010999,2]
[333401709,1722108634055,-500.0,0.00010999,2]
[333401710,1722108634064,-500.0,0.00010999,2]
[333401711,1722108634074,-500.0,0.00010999,2]
[333401712,1722108634084,-213.06,0.00010999,2]
[333401713,1722108634093,-500.0,0.00010999,2]
[333401714,1722108634103,-500.0,0.00010999,2]
[333401715,1722108634112,-500.0,0.00010999,2]
[333401716,1722108634122,-500.0,0.00010999,2]
[333401717,1722108634131,-500.0,0.00010999,2]
[333401718,1722108634141,-645.56,0.00010999,2]
[333401719,1722108634151,-580.65,0.00010999,2]
[333401720,1722108634160,-500.0,0.00010999,2]
[333401721,1722108634170,-500.0,0.00010999,2]
[333401722,1722108634179,-500.0,0.00010999,2]
[333401723,1722108634189,-400.97,0.00010999,2]
[333401724,1722108634199,-500.0,0.00010999,2]
[333401725,1722108634208,-500.0,0.00010999,2]
[333401726,1722108634218,-500.0,0.00010999,2]
[333401727,1722108634228,-500.0,0.00010999,2]
[333401728,1722108634237,-410.83,0.00010999,2]
[333401729,1722108634246,-500.0,0.00010999,2]
[333401730,1722108634256,-368.37,0.00010999,2]
[333401731,1722108634265,-470.71,0.00010999,2]
[333401732,1722108634275,-598.70139028,0.00010999,2]
[333401733,1722108634284,-500.0,0.00010999,2]
[333401734,1722108634293,-500.0,0.00010999,2]
[333401735,1722108634302,-501.96565747,0.00010999,2]
[333401736,1722108634312,-589673.33637124,0.00011,2]
[333401742,1722108638959,-300.0,0.00010897,2]
[333401744,1722108638971,-513.9324,0.00010897,2]
[333401746,1722108638981,-402.58904178,0.00011,2]
[333401750,1722108639170,-8344.61681442,0.00011,2]
[333401751,1722108639181,-2180.5836,0.00011,2]
[333401752,1722108639193,-366.36265297,0.00011,2]
[333401753,1722108639205,-1506.54650978,0.00011,2]
[333401754,1722108639252,-313.999999,0.00011,2]
[333401755,1722108639264,-6617.7111,0.00011,2]
[333401756,1722108639328,-1291.06,0.00011,2]
[333401757,1722108639340,-302.6099945,0.00011,2]
[333401763,1722108639777,-23538.13631104,0.00011,2]
[333401764,1722108639789,-253.44497898,0.00011,2]
[333401765,1722108639801,-345.91147168,0.00011,2]
[333401766,1722108639935,-1294.17250059,0.00011,2]
[333401767,1722108639947,-2081.78624602,0.00011,2]
[333401768,1722108639978,-59711.39509915,0.00011,2]
[333401769,1722108639990,-73761.64662678,0.00011,2]
[333401770,1722108640000,-28592.45445995,0.00011,2]
[333401771,1722108640013,-66753.04296025,0.00011,2]
[333401772,1722108640026,-31781.46085387,0.00011,2]
[333401773,1722108640038,-59172.69420351,0.00011,2]
[333401774,1722108640050,-137560.34830456,0.00011,2]
[333401775,1722108640067,-777.7292,0.00011,2]
[333401776,1722108640079,-3760.06773057,0.00011,2]
[333402010,1722108642662,-2732.81628574,0.000109,2]
[333402011,1722108642801,-1811.35,0.000109,2]
[333402012,1722108642814,-2955.83371426,0.000109,2]
[333402013,1722108642824,-1381.12396081,0.00011,2]
[333402014,1722108642844,-6732.159,0.00011,2]
[333402015,1722108642890,-1723.52276409,0.00011,2]
[333402026,1722108645852,-456.17258233,0.00011,2]
[333402027,1722108645864,-1018.22851633,0.00011,2]
[333402028,1722108645884,-954.77093177,0.00011,2]
[333402031,1722108646147,-34380.21599386,0.00011,2]
[333402032,1722108646159,-712.12356696,0.00011,2]
[333402033,1722108646170,-883.43141729,0.00011,2]
[333402034,1722108646181,-795.95894059,0.00011,2]
[333402062,1722109736919,175.28772076,8.178e-05,2]
[333402074,1722109795255,-223.91227924,8.219e-05,2]
[333402077,1722109831682,-11360.65198285,8.178e-05,2]
[333402078,1722109831693,-4020.05519747,8.178e-05,2]
[333402079,1722109831743,-8508.54387818,8.178e-05,2]
[333402080,1722109831755,-212064.28297888,8.178e-05,2]
[333402081,1722109831765,-919.12772076,8.219e-05,2]
[333402082,1722109831774,-250.0,9.066e-05,2]
[333402083,1722109831785,-990.03,9.148e-05,2]
[333402084,1722109831795,-4883.65800606,9.148e-05,2]
[333402085,1722109831806,-152.35,9.158e-05,2]
[333402086,1722109831816,-1487.02,9.19e-05,2]
[333402087,1722109831826,-300.0,9.197e-05,2]
[333402088,1722109831836,-1677.77,9.198e-05,2]
[333402089,1722109831845,-23900.0,9.213e-05,2]
[333402090,1722109831855,-1947.2,9.216e-05,2]
[333402091,1722109831865,-200.0,9.246e-05,2]
[333402092,1722109831874,-487.68,9.265e-05,2]
[333402096,1722109832090,-392.8,9.272e-05,2]
[333402097,1722109832101,-2058.16,9.303e-05,2]
[333402098,1722109832111,-237.62,9.324e-05,2]
[333402099,1722109832121,-2209.85,9.325e-05,2]
[333402100,1722109832131,-559.19,9.353e-05,2]
[333402101,1722109832140,-250.0,9.353e-05,2]
[333402102,1722109832150,-194.98,9.477e-05,2]
[333402104,1722109832159,-150.0,9.669e-05,2]
[333402105,1722109832168,-9999.99,9.67e-05,2]
[333402107,1722109832178,-2558.04,9.67e-05,2]
[333402109,1722109832188,-15133.52,9.67e-05,2]
[333402110,1722109832198,-499.99,9.67e-05,2]
[333402111,1722109832207,-2359.75,9.67e-05,2]
[333402112,1722109832217,-800.74,9.67e-05,2]
[333402113,1722109832226,-878.59,9.67e-05,2]
[333402114,1722109832235,-1662.05,9.67e-05,2]
[333402115,1722109832246,-150.99,9.853e-05,2]
[333402116,1722109832255,-178.42,9.864e-05,2]
[333402117,1722109832265,-512.32,9.885e-05,2]
[333402118,1722109832275,-15641.30990825,0.00010031,2]
[333402119,1722109832285,-885.52,0.00010041,2]
[333402120,1722109832295,-833.64,0.00010041,2]
[333402121,1722109832305,-420.31,0.00010055,2]
[333402122,1722109832315,-420.31,0.00010055,2]
[333402123,1722109832324,-420.31,0.00010055,2]
[333402124,1722109832334,-420.31,0.00010055,2]
[333402125,1722109832344,-991.58,0.00010055,2]
[333402126,1722109832354,-417.79,0.00010055,2]
[333402127,1722109832363,-420.0,0.00010117,2]
[333402128,1722109832375,-833.93,0.00010141,2]
[333402129,1722109832385,-420.31,0.00010141,2]
[333402130,1722109832395,-420.31,0.00010141,2]
[333402131,1722109832404,-833.93,0.00010141,2]
[333402132,1722109832414,-833.93,0.00010141,2]
[333402133,1722109832423,-420.31,0.00010141,2]
[333402134,1722109832433,-833.93,0.00010141,2]
[333402135,1722109832442,-420.31,0.00010141,2]
[333402136,1722109832452,-833.93,0.00010141,2]
[333402137,1722109832462,-833.93,0.00010141,2]
[333402138,1722109832472,-833.93,0.00010141,2]
[333402139,1722109832481,-833.93,0.00010141,2]
[333402140,1722109832491,-355.09,0.00010178,2]
[333402141,1722109832500,-150.0,0.00010278,2]
[333402142,1722109832510,-856.59,0.00010278,2]
[333402143,1722109832519,-150.0,0.00010278,2]
[333402144,1722109832530,-150.0,0.00010278,2]
[333402145,1722109832539,-150.0,0.00010278,2]
[333402146,1722109832549,-5962.032,0.00010319,2]
[333402147,1722109832558,-487.68,0.00010423,2]
[333402148,1722109832569,-1143.04,0.0001044,2]
[333402149,1722109832578,-255.0,0.00010635,2]
[333402150,1722109832588,-4808.0,0.0001078,2]
[333402151,1722109832598,-2500.0,0.0001079,2]
[333402152,1722109832607,-152.0,0.00010831,3]
[333402153,1722109832617,-4037.31770087,0.00010889,2]
[333402154,1722109832627,-243716.397,0.0001089,2]
[333402155,1722109832637,-406.86979511,0.00010899,2]
[333402156,1722109832647,-406.86979504,0.00010899,2]
[333402157,1722109832656,-406.86979504,0.00010899,2]
[333402158,1722109832667,-406.86979504,0.00010899,2]
[333402159,1722109832676,-406.86979504,0.00010899,2]
[333402160,1722109832686,-406.86979504,0.00010899,2]
[333402161,1722109832695,-406.86979504,0.00010899,2]
[333402162,1722109832705,-406.86979504,0.00010899,2]
[333402163,1722109832714,-406.86979504,0.00010899,2]
[333402164,1722109832728,-309.20226975,0.00010899,2]
[333402165,1722109832737,-309.20226975,0.000109,2]
[333402166,1722109832747,-1000.0,0.000109,2]
[333402167,1722109832757,-29503.2962,0.000109,2]
[333402168,1722109832768,-19066.3287,0.000109,2]
[333402169,1722109832779,-31058.1901,0.000109,2]
[333402170,1722109832789,-235.2687,0.000109,2]
[333402171,1722109832802,-460.3253,0.000109,2]
[333402172,1722109832814,-758.6431724,0.000109,2]
[333402173,1722109832824,-406.86979504,0.000109,2]
[333402174,1722109832834,-39876.94717055,0.000109,2]
[333402175,1722109832843,-309.20226975,0.000109,2]
[333402176,1722109832854,-1189.0,0.000109,2]
[333402177,1722109832863,-19935.43537966,0.00010912,2]
[333402178,1722109832873,-500.0,0.00010912,2]
[333402179,1722109832882,-1254.0,0.00010944,2]
[333402180,1722109832892,-1663.0,0.00010944,2]
[333402181,1722109832901,-362.0,0.00010944,2]
[333402182,1722109832911,-1829.0,0.00010944,2]
[333402183,1722109832921,-445.266,0.00010944,2]
[333402184,1722109832931,-206.862,0.00010944,2]
[333402185,1722109832940,-550.0,0.00010944,2]
[333402186,1722109832950,-262.988,0.00010944,2]
[333402187,1722109832960,-2382.0,0.00010944,2]
[333402188,1722109832969,-1994.0,0.00010944,2]
[333402189,1722109832979,-150.0,0.00010944,2]
[333402190,1722109832989,-3283.0,0.00010944,2]
[333402191,1722109832998,-1276.972,0.00010944,2]
[333402192,1722109833009,-38367.0,0.00010944,2]
[333402193,1722109833018,-5122.0,0.00010944,2]
[333402194,1722109833028,-1761.653,0.00010944,2]
[333402195,1722109833037,-5830.0,0.00010944,2]
[333402196,1722109833047,-1074.0,0.00010944,2]
[333402197,1722109833056,-602.75194665,0.00010958,2]
[333402198,1722109833067,-500.0,0.00010958,2]
[333402199,1722109833077,-500.0,0.00010958,2]
[333402200,1722109833086,-500.0,0.00010958,2]
[333402201,1722109833096,-242.31777726,0.00010958,2]
[333402202,1722109833106,-280.46,0.00010958,2]
[333402203,1722109833116,-221.61180644,0.00010958,2]
[333402204,1722109833126,-500.0,0.00010958,2]
[333402205,1722109833136,-500.0,0.00010958,2]
[333402206,1722109833145,-500.0,0.00010958,2]
[333402207,1722109833156,-618.69,0.00010958,2]
[333402208,1722109833166,-500.0,0.00010958,2]
[333402209,1722109833177,-500.0,0.00010958,2]
[333402210,1722109833187,-500.0,0.00010958,2]
[333402211,1722109833197,-500.0,0.00010958,2]
[333402212,1722109833207,-500.0,0.00010958,2]
[333402213,1722109833218,-568.61389259,0.00010958,2]
[333402214,1722109833228,-500.0,0.00010958,2]
[333402215,1722109833238,-219.97665441,0.00010958,2]
[333402216,1722109833247,-414.01891517,0.00010958,2]
[333402217,1722109833258,-500.0,0.00010959,2]
[333402218,1722109833268,-500.0,0.00010959,2]
[333402219,1722109833279,-150.0,0.00010959,2]
[333402220,1722109833288,-324.75,0.00010959,2]
[333402221,1722109833298,-270.63,0.00010959,2]
[333402222,1722109833307,-250.0,0.00010959,2]
[333402223,1722109833316,-225.52,0.00010959,2]
[333402224,1722109833326,-187.94,0.00010959,2]
[333402225,1722109833336,-156.61,0.00010959,2]
[333402226,1722109833347,-783.1,0.00010959,2]
[333402227,1722109833356,-11456.07,0.00010959,2]
[333402228,1722109833366,-9235.0,0.00010986,2]
[333402229,1722109833376,-8500.0,0.0001099,2]
[333402230,1722109833387,-587.79319849,0.00010995,2]
[333402231,1722109833397,-500.0,0.00010997,2]
[333402232,1722109833407,-500.0,0.00010997,2]
[333402233,1722109833417,-500.0,0.00010997,2]
[333402234,1722109833427,-307.59279992,0.00010997,2]
[333402235,1722109833437,-4702.34558792,0.00010997,2]
[333402236,1722109833447,-73794.73224466,0.00010998,2]
[333402237,1722109833461,-5857.75826326,0.00010998,2]
[333402238,1722109833473,-810.58301458,0.00010998,2]
[333402239,1722109833483,-418.95896555,0.00010998,2]
[333402240,1722109833493,-43.08801984,0.00010998,2]
[333402241,1722109833507,-3215.01819076,0.00010998,2]
[333402242,1722109833517,-4376.5794603,0.00010998,2]
[333402243,1722109833528,-727.5022704,0.00010998,2]
[333402244,1722109833539,-274.457984,0.00010999,2]
[333402245,1722109833548,-300.02,0.00010999,2]
[333402246,1722109833558,-481.13102725,0.00010999,2]
[333402247,1722109833568,-500.0,0.00010999,2]
[333402248,1722109833578,-500.0,0.00010999,2]
[333402249,1722109833587,-500.0,0.00010999,2]
[333402250,1722109833597,-500.0,0.00010999,2]
[333402251,1722109833607,-500.0,0.00010999,2]
[333402252,1722109833616,-500.0,0.00010999,2]
[333402253,1722109833626,-582.15278321,0.00010999,2]
[333402254,1722109833635,-500.0,0.00010999,2]
[333402255,1722109833646,-500.0,0.00010999,2]
[333402256,1722109833655,-500.0,0.00010999,2]
[333402257,1722109833665,-500.0,0.00010999,2]
[333402258,1722109833675,-500.0,0.00010999,2]
[333402259,1722109833684,-500.0,0.00010999,2]
[333402260,1722109833694,-500.0,0.00010999,2]
[333402261,1722109833703,-456.00655987,0.00010999,2]
[333402262,1722109833713,-500.0,0.00010999,2]
[333402263,1722109833723,-194.56792257,0.00010999,2]
[333402264,1722109833736,-222.68801984,0.00010999,2]
[333402265,1722109833745,-500.0,0.00010999,2]
[333402266,1722109833755,-549.05715338,0.00010999,2]
[333402267,1722109833764,-1031.4,0.00010999,2]
[333402268,1722109833773,-1031.4,0.00010999,2]
[333402269,1722109833785,-1031.4,0.00010999,2]
[333402270,1722109833794,-1031.4,0.00010999,2]
[333402271,1722109833803,-1031.4,0.00010999,2]
[333402272,1722109833813,-1031.4,0.00010999,2]
[333402273,1722109833823,-1031.4,0.00010999,2]
[333402274,1722109833832,-1031.4,0.00010999,2]
[333402275,1722109833842,-1031.4,0.00010999,2]
[333402276,1722109833851,-1031.4,0.00010999,2]
[333402277,1722109833860,-1031.4,0.00010999,2]
[333402278,1722109833870,-1031.4,0.00010999,2]
[333402279,1722109833879,-1031.4,0.00010999,2]
[333402280,1722109833888,-1031.4,0.00010999,2]
[333402281,1722109833898,-1031.4,0.00010999,2]
[333402282,1722109833907,-1031.4,0.00010999,2]
[333402283,1722109833917,-1031.4,0.00010999,2]
[333402284,1722109833927,-1031.4,0.00010999,2]
[333402285,1722109833937,-1031.4,0.00010999,2]
[333402286,1722109833946,-1031.4,0.00010999,2]
[333402287,1722109833955,-1031.4,0.00010999,2]
[333402288,1722109833965,-1031.4,0.00010999,2]
[333402289,1722109833975,-1031.4,0.00010999,2]
[333402290,1722109833984,-1031.40102383,0.00010999,2]
[333402291,1722109833994,-237.22325296,0.00010999,2]
[333402292,1722109834005,-343.91493527,0.00010999,2]
[333402293,1722109834015,-500.0,0.00010999,2]
[333402294,1722109834024,-500.0,0.00010999,2]
[333402295,1722109834036,-500.0,0.00010999,2]
[333402296,1722109834045,-500.0,0.00010999,2]
[333402297,1722109834055,-500.0,0.00010999,2]
[333402298,1722109834065,-500.0,0.00010999,2]
[333402299,1722109834074,-500.0,0.00010999,2]
[333402300,1722109834084,-452.73838273,0.00010999,2]